[Event "Live Chess"]
[Site "Chess.com"]
[Date "2023.05.20"]
[Round "-"]
[White "flyingpuffins"]
[Black "whitedjohn"]
[Result "1-0"]
[WhiteElo "1992"]
[BlackElo "1676"]
[TimeControl "300"]
[EndTime "11:15:34 PDT"]
[Termination "flyingpuffins won by checkmate"]

1. e4 {[%clk 0:04:57.7]} 1... Nf6 {[%clk 0:04:57.7]} 2. Nc3 {[%clk 0:04:55]}
2... d5 {[%clk 0:04:55.6]} 3. exd5 {[%clk 0:04:52.4]} 3... Nxd5 {[%clk
0:04:52.6]} 4. Bc4 {[%clk 0:04:51.6]} 4... c6 {[%clk 0:04:49.5]} 5. Nf3 {[%clk
0:04:44.6]} 5... Bg4 {[%clk 0:04:45.9]} 6. O-O {[%clk 0:04:43.4]} 6... e6 {[%clk
0:04:44.5]} 7. h3 {[%clk 0:04:38.6]} 7... Bh5 {[%clk 0:04:41.7]} 8. g4 {[%clk
0:04:37.5]} 8... Bg6 {[%clk 0:04:39.1]} 9. Ne5 {[%clk 0:04:36.7]} 9... Nxc3
{[%clk 0:04:22.8]} 10. bxc3 {[%clk 0:04:30.1]} 10... Bd6 {[%clk 0:04:20.4]} 11.
Qe2 {[%clk 0:04:19.4]} 11... Qc7 {[%clk 0:04:07.6]} 12. f4 {[%clk 0:04:09.3]}
12... Nd7 {[%clk 0:03:52.3]} 13. d4 {[%clk 0:04:04.1]} 13... Bxe5 {[%clk
0:03:35.1]} 14. fxe5 {[%clk 0:03:58.5]} 14... O-O {[%clk 0:03:28]} 15. h4 {[%clk
0:03:52.4]} 15... h6 {[%clk 0:03:20.3]} 16. h5 {[%clk 0:03:42.8]} 16... Bh7
{[%clk 0:03:18.7]} 17. g5 {[%clk 0:03:41.2]} 17... hxg5 {[%clk 0:03:02.2]} 18.
Bxg5 {[%clk 0:03:39.1]} 18... c5 {[%clk 0:02:58.6]} 19. h6 {[%clk 0:03:20.6]}
19... cxd4 {[%clk 0:02:48.7]} 20. hxg7 {[%clk 0:03:15.5]} 20... Rfc8 {[%clk
0:02:47.2]} 21. Qf3 {[%clk 0:02:48.6]} 21... Nxe5 {[%clk 0:02:41.7]} 22. Qf6
{[%clk 0:02:26.5]} 22... Nxc4 {[%clk 0:02:28.9]} 23. Rf4 {[%clk 0:02:18.8]}
23... dxc3 {[%clk 0:01:43.6]} 24. Rh4 {[%clk 0:02:09.8]} 24... Qg3+ {[%clk
0:01:38.1]} 25. Kh1 {[%clk 0:02:01.1]} 25... Rc5 {[%clk 0:01:01]} 26. Rxh7
{[%clk 0:01:46.7]} 26... Qxg5 {[%clk 0:00:54.9]} 27. Rh8# {[%clk 0:01:45.2]} 1-0

[Event "Live Chess"]
[Site "Chess.com"]
[Date "2023.05.20"]
[Round "-"]
[White "LL220284LL"]
[Black "NAZRIZ1977"]
[Result "1-0"]
[WhiteElo "2389"]
[BlackElo "2143"]
[TimeControl "300"]
[EndTime "11:15:38 PDT"]
[Termination "LL220284LL won by resignation"]

1. e3 {[%clk 0:04:57]} 1... g6 {[%clk 0:04:57.5]} 2. b3 {[%clk 0:04:56.9]} 2...
Bg7 {[%clk 0:04:57]} 3. d4 {[%clk 0:04:56.6]} 3... c5 {[%clk 0:04:55.9]} 4. Bb2
{[%clk 0:04:55.9]} 4... Nf6 {[%clk 0:04:55.5]} 5. Nf3 {[%clk 0:04:54.7]} 5...
O-O {[%clk 0:04:55]} 6. Nbd2 {[%clk 0:04:53.3]} 6... d5 {[%clk 0:04:54.5]} 7.
Be2 {[%clk 0:04:52.4]} 7... Nc6 {[%clk 0:04:54]} 8. O-O {[%clk 0:04:51.7]} 8...
Nd7 {[%clk 0:04:53.6]} 9. c4 {[%clk 0:04:47.5]} 9... dxc4 {[%clk 0:04:52.7]} 10.
Nxc4 {[%clk 0:04:46.5]} 10... cxd4 {[%clk 0:04:50.6]} 11. Nxd4 {[%clk 0:04:45]}
11... Nxd4 {[%clk 0:04:49.7]} 12. Bxd4 {[%clk 0:04:44.5]} 12... Bxd4 {[%clk
0:04:49.1]} 13. Qxd4 {[%clk 0:04:44.4]} 13... Nf6 {[%clk 0:04:46.5]} 14. Rfd1
{[%clk 0:04:42.2]} 14... Be6 {[%clk 0:04:44.2]} 15. Bf3 {[%clk 0:04:40.1]} 15...
Qxd4 {[%clk 0:04:39.4]} 16. Rxd4 {[%clk 0:04:40]} 16... Rab8 {[%clk 0:04:36.6]}
17. Na5 {[%clk 0:04:37.8]} 17... Rfc8 {[%clk 0:04:27.2]} 18. Nxb7 {[%clk
0:04:30]} 18... Rc2 {[%clk 0:04:25.3]} 19. Nd8 {[%clk 0:04:24]} 19... Bf5 {[%clk
0:04:20.6]} 20. Nc6 {[%clk 0:04:22]} 20... Re8 {[%clk 0:04:17.4]} 21. Nxa7
{[%clk 0:04:12.6]} 1-0

[Event "Live Chess"]
[Site "Chess.com"]
[Date "2023.05.20"]
[Round "-"]
[White "seuen"]
[Black "Lewstar1"]
[Result "1-0"]
[WhiteElo "1148"]
[BlackElo "454"]
[TimeControl "300"]
[EndTime "11:15:43 PDT"]
[Termination "seuen won by resignation"]

1. e4 {[%clk 0:04:58.7]} 1... Nc6 {[%clk 0:04:53.1]} 2. d4 {[%clk 0:04:57.1]}
2... b6 {[%clk 0:04:51]} 3. d5 {[%clk 0:04:55.6]} 3... Nb4 {[%clk 0:04:49.1]} 4.
c3 {[%clk 0:04:49.9]} 4... Na6 {[%clk 0:04:47.5]} 5. Nf3 {[%clk 0:04:47.5]} 5...
Nf6 {[%clk 0:04:44.3]} 6. Bd3 {[%clk 0:04:44.1]} 6... d6 {[%clk 0:04:41.1]} 7.
O-O {[%clk 0:04:35.7]} 7... Bg4 {[%clk 0:04:38.8]} 8. Nbd2 {[%clk 0:04:30.7]}
8... Nc5 {[%clk 0:04:35]} 9. Bb5+ {[%clk 0:04:23]} 9... Ncd7 {[%clk 0:04:13.1]}
10. Bc6 {[%clk 0:04:18.9]} 10... Rb8 {[%clk 0:04:02.1]} 11. Qa4 {[%clk
0:04:15.3]} 11... a5 {[%clk 0:03:52.4]} 12. e5 {[%clk 0:04:10.8]} 12... dxe5
{[%clk 0:03:45.6]} 13. Nxe5 {[%clk 0:04:08.1]} 13... Bf5 {[%clk 0:03:19.1]} 14.
Ndf3 {[%clk 0:03:54.1]} 14... g6 {[%clk 0:03:02.2]} 15. Bg5 {[%clk 0:03:40.9]}
15... Bg7 {[%clk 0:02:55.4]} 16. Bxf6 {[%clk 0:03:34.8]} 16... Bxf6 {[%clk
0:02:53.4]} 17. g4 {[%clk 0:03:15.3]} 17... Bxe5 {[%clk 0:02:33.4]} 18. Nxe5
{[%clk 0:03:15.2]} 18... f6 {[%clk 0:01:55.2]} 19. gxf5 {[%clk 0:02:42.9]} 19...
gxf5 {[%clk 0:01:50.7]} 20. Nxd7 {[%clk 0:02:36.9]} 20... Rc8 {[%clk 0:01:42.9]}
21. Nxb6+ {[%clk 0:02:26.8]} 21... Kf7 {[%clk 0:01:36.7]} 22. Nxc8 {[%clk
0:02:21.1]} 22... Qxc8 {[%clk 0:01:29.6]} 1-0

[Event "Live Chess"]
[Site "Chess.com"]
[Date "2023.05.20"]
[Round "-"]
[White "ViktorTheCoolBoy"]
[Black "Driftboard"]
[Result "1-0"]
[WhiteElo "2543"]
[BlackElo "678"]
[TimeControl "300"]
[EndTime "11:15:53 PDT"]
[Termination "ViktorTheCoolBoy won by checkmate"]

1. Nf3 {[%clk 0:04:58.4]} 1... e5 {[%clk 0:04:59.6]} 2. Nxe5 {[%clk 0:04:56.9]}
2... Nc6 {[%clk 0:04:58.8]} 3. Nf3 {[%clk 0:04:55.3]} 3... Nf6 {[%clk
0:04:56.8]} 4. d4 {[%clk 0:04:54.4]} 4... Be7 {[%clk 0:04:51.7]} 5. d5 {[%clk
0:04:52.3]} 5... Nb8 {[%clk 0:04:48]} 6. c4 {[%clk 0:04:51.2]} 6... d6 {[%clk
0:04:45.6]} 7. Nc3 {[%clk 0:04:50.4]} 7... Bg4 {[%clk 0:04:43.2]} 8. Nd4 {[%clk
0:04:48.6]} 8... c5 {[%clk 0:04:40.5]} 9. Nc2 {[%clk 0:04:46.3]} 9... O-O {[%clk
0:04:34.5]} 10. f3 {[%clk 0:04:45.6]} 10... Bf5 {[%clk 0:04:31]} 11. e4 {[%clk
0:04:44.8]} 11... Bd7 {[%clk 0:04:29.2]} 12. Bd3 {[%clk 0:04:44]} 12... a6
{[%clk 0:04:26.4]} 13. O-O {[%clk 0:04:42.3]} 13... b5 {[%clk 0:04:25.1]} 14.
cxb5 {[%clk 0:04:41.3]} 14... axb5 {[%clk 0:04:23.7]} 15. Bxb5 {[%clk
0:04:40.8]} 15... Bxb5 {[%clk 0:04:22.2]} 16. Nxb5 {[%clk 0:04:40.7]} 16... Ra5
{[%clk 0:04:17.8]} 17. Nc3 {[%clk 0:04:38.6]} 17... Ra8 {[%clk 0:04:11.5]} 18.
b3 {[%clk 0:04:36.8]} 18... Qa5 {[%clk 0:04:08.5]} 19. Bd2 {[%clk 0:04:35]}
19... Qa6 {[%clk 0:04:03.2]} 20. Qe2 {[%clk 0:04:32.7]} 20... Qxe2 {[%clk
0:04:01.1]} 21. Nxe2 {[%clk 0:04:31.5]} 21... h6 {[%clk 0:03:57.2]} 22. Ne3
{[%clk 0:04:30.2]} 22... Kh7 {[%clk 0:03:54.4]} 23. Nf5 {[%clk 0:04:29.4]} 23...
Re8 {[%clk 0:03:47.3]} 24. Bf4 {[%clk 0:04:27.5]} 24... Ra6 {[%clk 0:03:32.6]}
25. Nc3 {[%clk 0:04:24.8]} 25... Nh5 {[%clk 0:03:28.9]} 26. Bd2 {[%clk
0:04:16.6]} 26... g6 {[%clk 0:03:24.6]} 27. Nxe7 {[%clk 0:04:15.2]} 27... Rxe7
{[%clk 0:03:23.2]} 28. a4 {[%clk 0:04:11.7]} 28... Rb6 {[%clk 0:03:17.3]} 29.
Nb5 {[%clk 0:04:02]} 29... Na6 {[%clk 0:03:09.5]} 30. Ba5 {[%clk 0:03:57.1]}
30... Rb8 {[%clk 0:02:59.1]} 31. Rfc1 {[%clk 0:03:55.8]} 31... Nb4 {[%clk
0:02:55.9]} 32. Bxb4 {[%clk 0:03:54.1]} 32... cxb4 {[%clk 0:02:54.8]} 33. Nxd6
{[%clk 0:03:52.9]} 33... Rd7 {[%clk 0:02:49.9]} 34. Nb5 {[%clk 0:03:50.9]} 34...
Nf4 {[%clk 0:02:45.4]} 35. Rc4 {[%clk 0:03:49.1]} 35... Ne2+ {[%clk 0:02:41.7]}
36. Kf2 {[%clk 0:03:48]} 36... Nf4 {[%clk 0:02:34.4]} 37. Rd1 {[%clk 0:03:46.7]}
37... f5 {[%clk 0:02:27.5]} 38. g3 {[%clk 0:03:44.3]} 38... Nh5 {[%clk
0:02:23.1]} 39. e5 {[%clk 0:03:41.3]} 39... g5 {[%clk 0:02:17.8]} 40. e6 {[%clk
0:03:39.3]} 40... Re7 {[%clk 0:02:16.2]} 41. Rc7 {[%clk 0:03:35.9]} 41... Rxc7
{[%clk 0:02:13.8]} 42. Nxc7 {[%clk 0:03:35.8]} 42... Nf6 {[%clk 0:02:06.2]} 43.
d6 {[%clk 0:03:34.8]} 43... Rb7 {[%clk 0:01:56.1]} 44. d7 {[%clk 0:03:32]} 44...
Nxd7 {[%clk 0:01:52.7]} 45. exd7 {[%clk 0:03:30.9]} 45... Rb8 {[%clk 0:01:47.8]}
46. d8=Q {[%clk 0:03:29.6]} 46... Rxd8 {[%clk 0:01:46.9]} 47. Rxd8 {[%clk
0:03:29.4]} 47... Kg7 {[%clk 0:01:45.2]} 48. Rb8 {[%clk 0:03:29.3]} 48... Kf7
{[%clk 0:01:44.7]} 49. Rxb4 {[%clk 0:03:29.2]} 49... Ke7 {[%clk 0:01:44.3]} 50.
Rc4 {[%clk 0:03:29.1]} 50... Kd7 {[%clk 0:01:43.9]} 51. a5 {[%clk 0:03:29]}
51... Kd6 {[%clk 0:01:43.3]} 52. a6 {[%clk 0:03:28.4]} 52... Kd7 {[%clk
0:01:42.1]} 53. a7 {[%clk 0:03:27.7]} 53... Kd6 {[%clk 0:01:41.9]} 54. a8=Q
{[%clk 0:03:26.9]} 54... Kd7 {[%clk 0:01:41.3]} 55. Qe8+ {[%clk 0:03:25.9]}
55... Kd6 {[%clk 0:01:40.9]} 56. Qe6# {[%clk 0:03:25.8]} 1-0

[Event "Live Chess"]
[Site "Chess.com"]
[Date "2023.05.20"]
[Round "-"]
[White "VovaOvchar1990"]
[Black "GEMdzq"]
[Result "0-1"]
[WhiteElo "1194"]
[BlackElo "2201"]
[TimeControl "300"]
[EndTime "11:16:14 PDT"]
[Termination "GEMdzq won by resignation"]

1. e4 {[%clk 0:04:56.3]} 1... d6 {[%clk 0:04:58.7]} 2. Bc4 {[%clk 0:04:53.7]}
2... Nf6 {[%clk 0:04:57.7]} 3. Nc3 {[%clk 0:04:49.9]} 3... g6 {[%clk 0:04:57.2]}
4. h3 {[%clk 0:04:48.3]} 4... Bg7 {[%clk 0:04:56.6]} 5. d4 {[%clk 0:04:46.1]}
5... O-O {[%clk 0:04:49.3]} 6. Nf3 {[%clk 0:04:43.7]} 6... c6 {[%clk 0:04:48.7]}
7. O-O {[%clk 0:04:40.3]} 7... b5 {[%clk 0:04:47.9]} 8. Bb3 {[%clk 0:04:37.8]}
8... b4 {[%clk 0:04:46.6]} 9. Ne2 {[%clk 0:04:35.3]} 9... Nxe4 {[%clk
0:04:44.8]} 10. Ng3 {[%clk 0:04:26.1]} 10... Nxg3 {[%clk 0:04:43]} 11. fxg3
{[%clk 0:04:24.8]} 11... a5 {[%clk 0:04:38.2]} 12. a3 {[%clk 0:04:19.3]} 12...
Ba6 {[%clk 0:04:34.3]} 13. Rf2 {[%clk 0:04:15.4]} 13... a4 {[%clk 0:04:31.2]}
14. Ba2 {[%clk 0:04:06.8]} 14... Qb6 {[%clk 0:04:06.6]} 15. axb4 {[%clk
0:04:04.3]} 15... Qxb4 {[%clk 0:04:04.9]} 16. c3 {[%clk 0:04:02.6]} 16... Qb6
{[%clk 0:04:02.8]} 17. Be3 {[%clk 0:03:56.4]} 17... Nd7 {[%clk 0:04:01.8]} 18.
d5 {[%clk 0:03:46.4]} 18... c5 {[%clk 0:04:00.6]} 19. Qxa4 {[%clk 0:03:36.4]}
19... Bb5 {[%clk 0:03:51.7]} 20. Qh4 {[%clk 0:03:27.4]} 20... Ra4 {[%clk
0:03:45.1]} 21. Qxe7 {[%clk 0:03:20.5]} 21... Nf6 {[%clk 0:03:38.6]} 22. Rff1
{[%clk 0:02:45.7]} 22... Re4 {[%clk 0:03:35.7]} 23. Qxf8+ {[%clk 0:01:19.1]}
23... Kxf8 {[%clk 0:03:31.7]} 24. Bf2 {[%clk 0:01:03.5]} 24... Bxf1 {[%clk
0:03:27.2]} 25. Rxf1 {[%clk 0:01:00.5]} 25... Qxb2 {[%clk 0:03:26.2]} 26. Bc4
{[%clk 0:00:53.7]} 26... Rxc4 {[%clk 0:03:17.6]} 27. Ng5 {[%clk 0:00:50.3]}
27... Rxc3 {[%clk 0:03:13]} 28. Nxh7+ {[%clk 0:00:48.8]} 28... Nxh7 {[%clk
0:03:10.9]} 29. Bxc5 {[%clk 0:00:46.2]} 29... Rxc5 {[%clk 0:03:06.2]} 30. Rxf7+
{[%clk 0:00:46.1]} 30... Kxf7 {[%clk 0:03:04]} 31. Kh2 {[%clk 0:00:44.3]} 31...
Bd4 {[%clk 0:02:56.6]} 0-1

[Event "Live Chess"]
[Site "Chess.com"]
[Date "2023.05.20"]
[Round "-"]
[White "mattihelenius2"]
[Black "SupremeTactician"]
[Result "0-1"]
[WhiteElo "479"]
[BlackElo "2415"]
[TimeControl "300"]
[EndTime "11:16:18 PDT"]
[Termination "SupremeTactician won by checkmate"]

1. d4 {[%clk 0:04:58]} 1... Nf6 {[%clk 0:04:59.3]} 2. e4 {[%clk 0:04:57.2]} 2...
e6 {[%clk 0:04:59.2]} 3. e5 {[%clk 0:04:55.3]} 3... Nd5 {[%clk 0:04:58.6]} 4.
Nc3 {[%clk 0:04:53.4]} 4... Bb4 {[%clk 0:04:57.2]} 5. a3 {[%clk 0:04:50.9]} 5...
Bxc3+ {[%clk 0:04:56.4]} 6. bxc3 {[%clk 0:04:45.7]} 6... Nxc3 {[%clk 0:04:56.2]}
7. Qd3 {[%clk 0:04:44.3]} 7... Nd5 {[%clk 0:04:54.6]} 8. Rb1 {[%clk 0:04:41.4]}
8... b6 {[%clk 0:04:53.8]} 9. c4 {[%clk 0:04:34.3]} 9... Ne7 {[%clk 0:04:52.7]}
10. Bg5 {[%clk 0:04:19.7]} 10... h6 {[%clk 0:04:51]} 11. Bxe7 {[%clk 0:04:14.7]}
11... Qxe7 {[%clk 0:04:50.9]} 12. Be2 {[%clk 0:04:11.6]} 12... Bb7 {[%clk
0:04:37.2]} 13. c5 {[%clk 0:04:01.5]} 13... O-O {[%clk 0:04:32.9]} 14. Nf3
{[%clk 0:03:53.5]} 14... a5 {[%clk 0:04:24.3]} 15. Rb5 {[%clk 0:03:48.3]} 15...
Ba6 {[%clk 0:04:22.2]} 16. cxb6 {[%clk 0:03:43.3]} 16... c6 {[%clk 0:04:19.5]}
17. Rxa5 {[%clk 0:03:38.9]} 17... Bxd3 {[%clk 0:04:16.8]} 18. Bxd3 {[%clk
0:03:37.5]} 18... Rxa5 {[%clk 0:04:14.9]} 19. b7 {[%clk 0:03:31]} 19... Rxa3
{[%clk 0:04:12.4]} 20. Ke2 {[%clk 0:03:25.3]} 20... Ra2+ {[%clk 0:04:10.7]} 21.
Ke3 {[%clk 0:03:24]} 21... f5 {[%clk 0:04:08.1]} 22. Rb1 {[%clk 0:03:21.3]}
22... f4+ {[%clk 0:04:07.3]} 23. Ke4 {[%clk 0:03:17.4]} 23... d5+ {[%clk
0:04:06.7]} 24. exd6 {[%clk 0:03:06.7]} 24... Qxd6 {[%clk 0:04:06.6]} 25. Ne5
{[%clk 0:02:54.6]} 25... Qd5# {[%clk 0:04:05.2]} 0-1

[Event "Live Chess"]
[Site "Chess.com"]
[Date "2023.05.20"]
[Round "-"]
[White "domrobson"]
[Black "JanMur7"]
[Result "1-0"]
[WhiteElo "1756"]
[BlackElo "1956"]
[TimeControl "300"]
[EndTime "11:16:23 PDT"]
[Termination "domrobson won by resignation"]

1. d4 {[%clk 0:04:57]} 1... Nf6 {[%clk 0:04:58.5]} 2. c4 {[%clk 0:04:56.3]} 2...
e6 {[%clk 0:04:57.4]} 3. Nc3 {[%clk 0:04:55.9]} 3... d5 {[%clk 0:04:56.6]} 4.
Nf3 {[%clk 0:04:55.1]} 4... Be7 {[%clk 0:04:56.1]} 5. Bg5 {[%clk 0:04:54.3]}
5... h6 {[%clk 0:04:55.1]} 6. Bxf6 {[%clk 0:04:52.5]} 6... Bxf6 {[%clk 0:04:55]}
7. e3 {[%clk 0:04:51.7]} 7... O-O {[%clk 0:04:54.3]} 8. Rc1 {[%clk 0:04:50.6]}
8... b6 {[%clk 0:04:53.6]} 9. cxd5 {[%clk 0:04:48.9]} 9... exd5 {[%clk
0:04:52.2]} 10. Bd3 {[%clk 0:04:48.4]} 10... c6 {[%clk 0:04:48]} 11. O-O {[%clk
0:04:47.7]} 11... Bg4 {[%clk 0:04:46.5]} 12. Be2 {[%clk 0:04:45.2]} 12... Nd7
{[%clk 0:04:43.1]} 13. h3 {[%clk 0:04:44.6]} 13... Bh5 {[%clk 0:04:40.7]} 14.
Ne5 {[%clk 0:04:41]} 14... Bxe2 {[%clk 0:04:30.3]} 15. Nxe2 {[%clk 0:04:38.2]}
15... Bxe5 {[%clk 0:04:27.4]} 16. dxe5 {[%clk 0:04:36.4]} 16... Nxe5 {[%clk
0:04:27.3]} 17. f4 {[%clk 0:04:34.1]} 17... Nc4 {[%clk 0:04:25.7]} 18. Qd4
{[%clk 0:04:29.5]} 18... Qe7 {[%clk 0:04:16.1]} 19. Rf3 {[%clk 0:04:27.7]} 19...
Rfe8 {[%clk 0:04:10.5]} 20. Rc3 {[%clk 0:04:25]} 20... Qe4 {[%clk 0:04:01]} 21.
Qxe4 {[%clk 0:04:21.1]} 21... Rxe4 {[%clk 0:04:00.9]} 22. b3 {[%clk 0:04:18.9]}
22... Nd2 {[%clk 0:03:52.3]} 23. Rg3 {[%clk 0:04:15.7]} 23... c5 {[%clk
0:03:49.2]} 24. Rd3 {[%clk 0:04:14.3]} 24... Nb1 {[%clk 0:03:36.1]} 25. Rxd5
{[%clk 0:04:12.4]} 25... Rae8 {[%clk 0:03:33.6]} 26. Rd3 {[%clk 0:04:10.3]}
26... Na3 {[%clk 0:03:28.4]} 27. Nc3 {[%clk 0:04:07.7]} 27... R4e6 {[%clk
0:03:14.4]} 28. e4 {[%clk 0:04:06.2]} 28... c4 {[%clk 0:03:05.4]} 29. bxc4
{[%clk 0:03:56.7]} 29... Nxc4 {[%clk 0:03:05.3]} 30. e5 {[%clk 0:03:52.1]} 30...
Nb2 {[%clk 0:03:01.2]} 31. Rd7 {[%clk 0:03:48.1]} 31... Rc6 {[%clk 0:02:58.5]}
32. Nd5 {[%clk 0:03:45.3]} 32... Kf8 {[%clk 0:02:54.5]} 33. Rxa7 {[%clk
0:03:31.3]} 33... Rd8 {[%clk 0:02:51.7]} 34. Nb4 {[%clk 0:03:26.7]} 34... Rc1+
{[%clk 0:02:45.3]} 35. Kh2 {[%clk 0:03:24.8]} 35... h5 {[%clk 0:02:31.2]} 36.
Rb3 {[%clk 0:03:19.1]} 36... Nc4 {[%clk 0:02:15.9]} 37. Rd3 {[%clk 0:03:13.7]}
37... Rxd3 {[%clk 0:02:05.6]} 38. Nxd3 {[%clk 0:03:12.2]} 38... h4 {[%clk
0:02:03.9]} 39. Nxc1 {[%clk 0:03:10.5]} 1-0

[Event "Live Chess"]
[Site "Chess.com"]
[Date "2023.05.20"]
[Round "-"]
[White "MaximKris"]
[Black "jennybobby44"]
[Result "1/2-1/2"]
[WhiteElo "1869"]
[BlackElo "1854"]
[TimeControl "300"]
[EndTime "11:16:30 PDT"]
[Termination "Game drawn by agreement"]

1. e4 {[%clk 0:04:59.2]} 1... c5 {[%clk 0:04:58.3]} 2. Nf3 {[%clk 0:04:58.6]}
2... d6 {[%clk 0:04:57.3]} 3. c3 {[%clk 0:04:57.6]} 3... g6 {[%clk 0:04:55.1]}
4. d4 {[%clk 0:04:56.4]} 4... cxd4 {[%clk 0:04:54.5]} 5. cxd4 {[%clk 0:04:55.2]}
5... Bg7 {[%clk 0:04:54.2]} 6. Nc3 {[%clk 0:04:54.2]} 6... e6 {[%clk 0:04:52.8]}
7. Bc4 {[%clk 0:04:53.8]} 7... Ne7 {[%clk 0:04:52.1]} 8. O-O {[%clk 0:04:53.4]}
8... a6 {[%clk 0:04:51.6]} 9. Bg5 {[%clk 0:04:52.6]} 9... O-O {[%clk 0:04:49.5]}
10. e5 {[%clk 0:04:50.5]} 10... d5 {[%clk 0:04:45.1]} 11. Bd3 {[%clk 0:04:49.4]}
11... h6 {[%clk 0:04:44.1]} 12. Bf6 {[%clk 0:04:48.6]} 12... Qc7 {[%clk
0:04:35.9]} 13. Bxg7 {[%clk 0:04:46.2]} 13... Kxg7 {[%clk 0:04:35]} 14. Nh4
{[%clk 0:04:44.8]} 14... Nd7 {[%clk 0:03:49.2]} 15. Rc1 {[%clk 0:04:42.8]} 15...
Qb6 {[%clk 0:03:34.9]} 16. Qg4 {[%clk 0:04:34.7]} 16... Re8 {[%clk 0:03:02]} 17.
Na4 {[%clk 0:04:22.3]} 17... Qb4 {[%clk 0:02:54.8]} 18. Nc5 {[%clk 0:04:18.2]}
18... Nxc5 {[%clk 0:02:53.3]} 19. Rxc5 {[%clk 0:04:17.6]} 19... Bd7 {[%clk
0:02:26.1]} 20. Rc7 {[%clk 0:04:12.7]} 20... Rad8 {[%clk 0:01:41.4]} 21. Rfc1
{[%clk 0:03:55.5]} 21... Nf5 {[%clk 0:01:24.3]} 22. Nxf5+ {[%clk 0:03:49.6]}
22... exf5 {[%clk 0:01:22.9]} 23. Qf4 {[%clk 0:03:40.5]} 23... Be6 {[%clk
0:01:07.3]} 24. Qh4 {[%clk 0:03:31.2]} 24... Rc8 {[%clk 0:01:01.8]} 25. Qf6+
{[%clk 0:03:28.2]} 25... Kg8 {[%clk 0:00:57.6]} 26. Rxc8 {[%clk 0:03:20.4]}
26... Rxc8 {[%clk 0:00:56.4]} 27. Rxc8+ {[%clk 0:03:17.2]} 27... Bxc8 {[%clk
0:00:56.3]} 28. Qd8+ {[%clk 0:03:16.5]} 28... Qf8 {[%clk 0:00:54.1]} 29. Qxf8+
{[%clk 0:03:14.2]} 29... Kxf8 {[%clk 0:00:53]} 30. Kf1 {[%clk 0:03:12.7]} 30...
Ke7 {[%clk 0:00:52]} 31. Ke2 {[%clk 0:03:10.3]} 31... Kd7 {[%clk 0:00:50]} 32.
f4 {[%clk 0:03:09.5]} 32... Kc6 {[%clk 0:00:48.6]} 33. h3 {[%clk 0:03:06.9]}
33... b5 {[%clk 0:00:48.1]} 34. Kf3 {[%clk 0:03:06]} 34... a5 {[%clk 0:00:47.2]}
35. g4 {[%clk 0:03:05.2]} 35... fxg4+ {[%clk 0:00:45.4]} 36. hxg4 {[%clk
0:03:05.1]} 36... b4 {[%clk 0:00:43.2]} 37. f5 {[%clk 0:03:04.4]} 37... g5
{[%clk 0:00:39.9]} 38. f6 {[%clk 0:02:56.7]} 38... Be6 {[%clk 0:00:38.4]} 39.
Bf5 {[%clk 0:02:54.8]} 39... Kd7 {[%clk 0:00:37.3]} 40. Bxe6+ {[%clk 0:02:50]}
40... Kxe6 {[%clk 0:00:36.8]} 41. b3 {[%clk 0:02:49.4]} 41... Kd7 {[%clk
0:00:35.3]} 42. Ke3 {[%clk 0:02:48.6]} 42... Ke6 {[%clk 0:00:34.5]} 43. Kf3
{[%clk 0:02:46.1]} 1/2-1/2

[Event "Live Chess"]
[Site "Chess.com"]
[Date "2023.05.20"]
[Round "-"]
[White "Chesscoach_Golichenko"]
[Black "CocheseUK"]
[Result "1-0"]
[WhiteElo "2654"]
[BlackElo "1106"]
[TimeControl "300"]
[EndTime "11:16:30 PDT"]
[Termination "Chesscoach_Golichenko won by resignation"]

1. d4 {[%clk 0:04:55.4]} 1... d5 {[%clk 0:04:58.3]} 2. c4 {[%clk 0:04:53.1]}
2... dxc4 {[%clk 0:04:56.9]} 3. e3 {[%clk 0:04:49.8]} 3... Nf6 {[%clk
0:04:50.2]} 4. Bxc4 {[%clk 0:04:48]} 4... c6 {[%clk 0:04:36.7]} 5. Nf3 {[%clk
0:04:46.3]} 5... Bd7 {[%clk 0:04:21.4]} 6. O-O {[%clk 0:04:42.4]} 6... e6 {[%clk
0:04:16.8]} 7. Nc3 {[%clk 0:04:36.3]} 7... Bd6 {[%clk 0:04:15]} 8. e4 {[%clk
0:04:35.3]} 8... O-O {[%clk 0:04:13.3]} 9. e5 {[%clk 0:04:34.3]} 9... Ne8 {[%clk
0:04:04.9]} 10. exd6 {[%clk 0:04:32.8]} 10... Nxd6 {[%clk 0:04:04]} 11. Bd3
{[%clk 0:04:32.5]} 11... b5 {[%clk 0:03:54.7]} 12. Bf4 {[%clk 0:04:20.6]} 12...
Qe7 {[%clk 0:03:49.9]} 13. Bxh7+ {[%clk 0:04:04.3]} 13... Kxh7 {[%clk 0:03:46]}
14. Ng5+ {[%clk 0:04:02.6]} 1-0

[Event "Live Chess"]
[Site "Chess.com"]
[Date "2023.05.20"]
[Round "-"]
[White "Olisingapore"]
[Black "viktorskliarov"]
[Result "0-1"]
[WhiteElo "1914"]
[BlackElo "2650"]
[TimeControl "300"]
[EndTime "11:16:36 PDT"]
[Termination "viktorskliarov won by checkmate"]

1. d4 {[%clk 0:04:55.3]} 1... Nf6 {[%clk 0:04:55]} 2. c4 {[%clk 0:04:54.8]} 2...
e6 {[%clk 0:04:54.1]} 3. g3 {[%clk 0:04:51.8]} 3... c5 {[%clk 0:04:52]} 4. d5
{[%clk 0:04:50.3]} 4... exd5 {[%clk 0:04:49.7]} 5. cxd5 {[%clk 0:04:50.2]} 5...
b5 {[%clk 0:04:48.3]} 6. Bg2 {[%clk 0:04:47.9]} 6... d6 {[%clk 0:04:45.3]} 7. a3
{[%clk 0:04:46.4]} 7... g6 {[%clk 0:04:41.5]} 8. Nc3 {[%clk 0:04:45.8]} 8... a6
{[%clk 0:04:39.7]} 9. Nf3 {[%clk 0:04:44.1]} 9... Bg7 {[%clk 0:04:37.9]} 10. O-O
{[%clk 0:04:43.8]} 10... O-O {[%clk 0:04:36.2]} 11. Bf4 {[%clk 0:04:43.3]} 11...
Re8 {[%clk 0:04:33.5]} 12. Re1 {[%clk 0:04:42]} 12... h6 {[%clk 0:04:24.7]} 13.
Qd3 {[%clk 0:04:32.2]} 13... g5 {[%clk 0:04:15.4]} 14. Bd2 {[%clk 0:04:25]}
14... Nbd7 {[%clk 0:04:12.7]} 15. b4 {[%clk 0:04:18.5]} 15... Bb7 {[%clk
0:03:46]} 16. Rac1 {[%clk 0:04:13.5]} 16... Rc8 {[%clk 0:03:38.5]} 17. e4 {[%clk
0:04:11.9]} 17... c4 {[%clk 0:03:29.1]} 18. Qc2 {[%clk 0:04:10.2]} 18... Ng4
{[%clk 0:03:28.2]} 19. h3 {[%clk 0:04:08.2]} 19... Nge5 {[%clk 0:03:26.7]} 20.
Ne2 {[%clk 0:03:44.9]} 20... Nxf3+ {[%clk 0:03:18.9]} 21. Bxf3 {[%clk 0:03:43]}
21... Ne5 {[%clk 0:03:18.5]} 22. Bg2 {[%clk 0:03:40]} 22... Nd3 {[%clk
0:03:17.3]} 23. Red1 {[%clk 0:03:32]} 23... f5 {[%clk 0:03:00.4]} 24. Be3 {[%clk
0:03:22.1]} 24... fxe4 {[%clk 0:02:54.1]} 25. Nc3 {[%clk 0:02:58.5]} 25... Rc7
{[%clk 0:02:05.7]} 26. Bxe4 {[%clk 0:02:25.2]} 26... Nxc1 {[%clk 0:01:53.9]} 27.
Rxc1 {[%clk 0:02:21.3]} 27... Bxc3 {[%clk 0:01:52.2]} 28. Qxc3 {[%clk
0:02:17.2]} 28... Rxe4 {[%clk 0:01:50.7]} 29. Bb6 {[%clk 0:02:14.1]} 29... Qc8
{[%clk 0:01:38.6]} 30. Bxc7 {[%clk 0:02:06.4]} 30... Qxc7 {[%clk 0:01:37.4]} 31.
Re1 {[%clk 0:02:00.5]} 31... Rxe1+ {[%clk 0:01:31.4]} 32. Qxe1 {[%clk
0:01:59.1]} 32... Bxd5 {[%clk 0:01:29.7]} 33. Qb1 {[%clk 0:01:47]} 33... Qf7
{[%clk 0:01:17.1]} 34. Kh2 {[%clk 0:01:31.4]} 34... Qxf2# {[%clk 0:01:15]} 0-1